[Event "EYTCC Girls U18 2022"]
[Site "Thessaloniki"]
[Date "2022.07.13"]
[Round "2.11"]
[White "Sheikh, Anum"]
[Black "Kara, Gulce Nehir"]
[Result "0-1"]
[ECO "B43"]
[WhiteElo "1799"]
[BlackElo "1907"]
[Annotator "ChessBase"]
[PlyCount "76"]
[EventDate "2022.07.12"]
[EventType "team-tourn"]
[EventCountry "GRE"]
[SourceTitle "playchess.com"]
[Source "ChessBase"]
[SourceQuality "1"]
[WhiteTeam "England"]
[BlackTeam "Turkey"]
[WhiteTeamCountry "ENG"]
[BlackTeamCountry "TUR"]
[TimeControl "40/5400+30:1800+30"]

1. e4 {[%emt 0:00:02]} c5 {[%emt 0:00:06]} 2. Nf3 {[%emt 0:00:04]} e6 {[%emt 0:00:05]} 3. d4 {[%emt 0:00:05]} cxd4 {[%emt 0:00:04]} 4. Nxd4 {[%emt 0:00:04]} a6 {[%emt 0:00:06]} 5. Nc3 {[%emt 0:00:04]} Qc7 {[%emt 0:00:04]} 6. Be2 {[%emt 0:00:14]} b5 {[%emt 0:00:05]} 7. a3 {[%emt 0:00:06]} Bb7 {[%emt 0:00:04]} 8. f4 {[%emt 0:00:11]} b4 {[%emt 0:09:28]} 9. axb4 {[%emt 0:02:34]} Bxb4 {[%emt 0:00:07]} 10. Qd3 {[%emt 0:07:59]} Nf6 {[%emt 0:24:55]} 11. Bf3 {[%emt 0:04:33]} Nxe4 {[%emt 0:04:33]} 12. Bd2 {[%emt 0:36:20]} Nxd2 {[%emt 0:06:55]} 13. Qxd2 {[%emt 0:00:20]} Bxf3 {[%emt 0:00:16]} 14. Nxf3 {[%emt 0:00:18]} O-O {[%emt 0:00:36]} 15. O-O {[%emt 0:00:58]} Rc8 {[%emt 0:00:23]} 16. Rac1 {[%emt 0:18:33]} Bxc3 {[%emt 0:01:09]} 17. bxc3 {[%emt 0:00:10]} Qxc3 {[%emt 0:00:07]} 18. Qe2 {[%emt 0:03:41]} Nc6 {[%emt 0:02:01]} 19. Rfd1 {[%emt 0:00:39]} d5 {[%emt 0:03:47]} 20. f5 {[%emt 0:02:02]} Re8 {[%emt 0:00:37]} 21. fxe6 {[%emt 0:01:04]} fxe6 {[%emt 0:00:11]} 22. Rd3 {[%emt 0:01:14]} Qc5+ {[%emt 0:00:20]} 23. Kh1 {[%emt 0:00:18]} e5 {[%emt 0:02:32]} 24. Ng5 {[%emt 0:06:36]} h6 {[%emt 0:02:16]} 25. Nh3 {[%emt 0:00:56]} a5 {[%emt 0:02:19]} 26. Rg3 {[%emt 0:01:19]} Re7 {[%emt 0:05:09]} 27. Qd2 {[%emt 0:01:25]} Qd6 {[%emt 0:00:31]} 28. Nf2 {[%emt 0:01:20]} Rd8 {[%emt 0:13:39]} 29. Ng4 {[%emt 0:00:57]} Re6 {[%emt 0:00:20]} 30. Ne3 {[%emt 0:01:30]} Rf6 {[%emt 0:05:22]} 31. Rd1 {[%emt 0:02:26]} d4 {[%emt 0:00:40]} 32. Nc4 {[%emt 0:01:05]} Qc5 {[%emt 0:01:10]} 33. Qe2 {[%emt 0:01:26]} Rdf8 {[%emt 0:00:33]} 34. Rf3 {[%emt 0:02:23]} e4 {[%emt 0:01:26]} 35. Rxf6 {[%emt 0:01:30]} Rxf6 {[%emt 0:00:03]} 36. Nb2 {[%emt 0:01:12]} e3 {[%emt 0:03:06]} 37. Nd3 {[%emt 0:00:23]} Qc4 {[%emt 0:00:12]} 38. Re1 {[%emt 0:01:43]} Nb4 0-1

[Event "EYTCC Girls U18 2022"]
[Site "Thessaloniki"]
[Date "2022.07.13"]
[Round "2.12"]
[White "Kayis, Gulcan Sena"]
[Black "Pert, Nina"]
[Result "0-1"]
[ECO "B13"]
[WhiteElo "1682"]
[BlackElo "1703"]
[Annotator "NA"]
[PlyCount "78"]
[EventDate "2022.07.12"]
[EventType "team-tourn"]
[EventCountry "GRE"]
[SourceTitle "playchess.com"]
[Source "ChessBase"]
[SourceQuality "1"]
[WhiteTeam "Turkey"]
[BlackTeam "England"]
[WhiteTeamCountry "TUR"]
[BlackTeamCountry "ENG"]
[TimeControl "40/5400+30:1800+30"]

1. e4 {[%emt 0:00:07]} c6 {[%emt 0:00:17]} 2. d4 {[%emt 0:00:10]} d5 {[%emt 0:00:18]} 3. exd5 {[%emt 0:00:48]} cxd5 {[%emt 0:00:17]} 4. Bd3 {[%emt 0:00:22]} Nc6 {[%emt 0:00:31]} 5. c3 {[%emt 0:00:12]} Qc7 {[%emt 0:00:50]} 6. Ne2 {[%emt 0:00:27]} Bg4 {[%emt 0:01:08]} 7. O-O {[%emt 0:00:59]} e6 {[%emt 0:01:47]} 8. Qe1 {[%emt 0:03:24]} Bd6 {[%emt 0:02:42]} 9. f3 {[%emt 0:01:59]} Bf5 {[%emt 0:05:14]} 10. Bxf5 {[%emt 0:04:07]} exf5 {[%emt 0:00:13]} 11. Nf4+ {[%emt 0:00:36]} Nge7 {[%emt 0:01:27]} 12. Nxd5 {[%emt 0:09:07]} Bxh2+ {[%emt 0:00:53]} 13. Kh1 {[%emt 0:00:18]} Qd6 {[%emt 0:00:49]} 14. Nxe7 {[%emt 0:05:19]} Nxe7 {[%emt 0:00:45]} 15. Qh4 {[%emt 0:03:39]} Bg3 {[%emt 0:01:14]} 16. Qh3 {[%emt 0:00:34]} h5 {[%emt 0:08:16]} 17. Nd2 {[%emt 0:05:31]} h4 {[%emt 0:02:03]} 18. Nc4 {[%emt 0:06:40]} Qf6 {[%emt 0:12:29]} 19. f4 {[%emt 0:04:26]} O-O-O {[%emt 0:07:43]} 20. Bd2 {[%emt 0:04:47]} Qe6 {[%emt 0:05:50]} 21. Ne3 {[%emt 0:05:13]} Rh5 {[%emt 0:02:29]} 22. Rf3 {[%emt 0:09:04]} Ng6 {[%emt 0:04:07]} 23. Nf1 {[%emt 0:04:50]} Rdh8 {[%emt 0:01:16]} 24. Be3 {[%emt 0:04:09]} f6 {[%emt 0:02:30]} 25. Kg1 {[%emt 0:03:28]} Ne7 {[%emt 0:01:42]} 26. Rc1 {[%emt 0:04:42]} Qxa2 {[%emt 0:04:46]} 27. b4 {[%emt 0:07:04]} Qb2 {[%emt 0:04:20]} 28. Rd1 {[%emt 0:03:56]} Kb8 {[%emt 0:02:21]} 29. d5 {[%emt 0:01:04]} Qb3 {[%emt 0:04:49]} 30. Ra1 {[%emt 0:00:53]} Qxd5 {[%emt 0:03:37]} 31. Bxa7+ {[%emt 0:01:04]} Kc7 {[%emt 0:01:03]} 32. Ne3 {[%emt 0:02:46]} Qe4 {[%emt 0:02:17]} 33. Ra5 {[%emt 0:02:04]} b6 {[%emt 0:03:46]} 34. Rb5 {[%emt 0:00:32]} Nc8 {[%emt 0:00:53]} 35. Nd5+ {[%emt 0:01:26]} Kc6 {[%emt 0:00:35]} 36. c4 {[%emt 0:01:21]} Qe1+ {[%emt 0:00:17]} 37. Rf1 {[%emt 0:00:04]} Bf2+ {[%emt 0:00:11]} 38. Kh2 {[%emt 0:00:05]} Qxf1 {[%emt 0:00:07]} 39. Ne7+ {[%emt 0:00:41]} Kd7 {[%emt 0:00:37]} 0-1

[Event "EYTCC Girls U18 2022"]
[Site "Thessaloniki"]
[Date "2022.07.14"]
[Round "3.1"]
[White "Lehaci, Miruna-Daria"]
[Black "Ziegenfuss, Antonia"]
[Result "1-0"]
[ECO "A34"]
[WhiteElo "2193"]
[BlackElo "2170"]
[Annotator "ChessBase"]
[PlyCount "97"]
[EventDate "2022.07.12"]
[EventType "team-tourn"]
[EventCountry "GRE"]
[SourceTitle "playchess.com"]
[Source "ChessBase"]
[SourceQuality "1"]
[WhiteTeam "Romania"]
[BlackTeam "Germany"]
[WhiteTeamCountry "ROU"]
[BlackTeamCountry "GER"]
[TimeControl "40/5400+30:1800+30"]

1. c4 {[%emt 0:00:04]} c5 {[%emt 0:00:08]} 2. Nf3 {[%emt 0:00:07]} Nf6 {[%emt 0:00:31]} 3. Nc3 {[%emt 0:00:08]} d5 {[%emt 0:00:37]} 4. cxd5 {[%emt 0:00:22]} Nxd5 {[%emt 0:00:13]} 5. d4 {[%emt 0:00:09]} cxd4 {[%emt 0:00:39]} 6. Qxd4 {[%emt 0:00:16]} Nxc3 {[%emt 0:00:20]} 7. Qxc3 {[%emt 0:00:08]} Nc6 {[%emt 0:00:18]} 8. e4 {[%emt 0:00:45]} e6 {[%emt 0:01:53]} 9. Bb5 {[%emt 0:00:02]} Bd7 {[%emt 0:02:09]} 10. O-O {[%emt 0:00:32]} Qb6 {[%emt 0:01:44]} 11. a4 {[%emt 0:00:37]} Qc5 {[%emt 0:00:57]} 12. Qd3 {[%emt 0:00:58]} Qd6 {[%emt 0:03:09]} 13. Qe2 {[%emt 0:00:54]} Be7 {[%emt 0:06:55]} 14. Rd1 {[%emt 0:02:56]} Qc7 {[%emt 0:00:57]} 15. a5 {[%emt 0:02:29]} e5 {[%emt 0:25:43]} 16. a6 {[%emt 0:09:04]} O-O {[%emt 0:10:20]} 17. axb7 {[%emt 0:07:41]} Rad8 {[%emt 0:01:43]} 18. Be3 {[%emt 0:08:05]} Qxb7 {[%emt 0:02:59]} 19. Rxd7 {[%emt 0:08:07]} Rxd7 {[%emt 0:16:07]} 20. Bxc6 {[%emt 0:00:38]} Qxc6 {[%emt 0:00:03]} 21. Nxe5 {[%emt 0:00:06]} Qe6 {[%emt 0:00:19]} 22. Nxd7 {[%emt 0:00:24]} Qxd7 {[%emt 0:00:03]} 23. Rxa7 {[%emt 0:01:08]} Qe6 {[%emt 0:00:26]} 24. Ra4 {[%emt 0:06:16]} Qb3 {[%emt 0:02:24]} 25. Rc4 {[%emt 0:01:39]} Bf6 {[%emt 0:01:34]} 26. Bc1 {[%emt 0:02:08]} Rd8 {[%emt 0:02:03]} 27. g3 {[%emt 0:01:40]} g6 {[%emt 0:02:35]} 28. Kg2 {[%emt 0:01:04]} h5 {[%emt 0:05:44]} 29. h4 {[%emt 0:02:12]} Re8 {[%emt 0:03:05]} 30. Rc6 {[%emt 0:06:07]} Bg7 {[%emt 0:02:01]} 31. Qc4 {[%emt 0:02:12]} Qb7 {[%emt 0:01:34]} 32. b4 {[%emt 0:02:10]} Kh7 {[%emt 0:03:08]} 33. b5 {[%emt 0:04:19]} Re7 {[%emt 0:03:51]} 34. Be3 {[%emt 0:02:02]} Be5 {[%emt 0:00:18]} 35. Qd5 {[%emt 0:04:50]} Bb8 {[%emt 0:00:36]} 36. b6 {[%emt 0:03:40]} Re5 {[%emt 0:00:38]} 37. Qc4 {[%emt 0:00:58]} Re7 {[%emt 0:00:09]} 38. Kh2 {[%emt 0:02:21]} Be5 {[%emt 0:00:29]} 39. Rc8 {[%emt 0:00:00]} Kg7 {[%emt 0:00:00]} 40. Qc6 {[%emt 0:00:00]} Qxc6 {[%emt 0:00:00]} 41. Rxc6 {[%emt 0:08:34]} Rb7 {[%emt 0:02:18]} 42. Rc5 {[%emt 0:00:53]} Bb8 {[%emt 0:01:37]} 43. Ra5 {[%emt 0:00:41]} Rd7 {[%emt 0:02:05]} 44. Ra8 {[%emt 0:01:07]} Bd6 {[%emt 0:00:50]} 45. Bd4+ {[%emt 0:00:54]} f6 {[%emt 0:00:04]} 46. Ra7 {[%emt 0:00:19]} Rf7 {[%emt 0:00:08]} 47. Rxf7+ {[%emt 0:01:05]} Kxf7 {[%emt 0:00:03]} 48. b7 {[%emt 0:00:04]} Bb8 {[%emt 0:00:05]} 49. Be3 {[%emt 0:00:05]} 1-0

[Event "EYTCC Girls U18 2022"]
[Site "Thessaloniki"]
[Date "2022.07.14"]
[Round "3.2"]
[White "Bashylina, Luisa"]
[Black "Ciolacu, Alessia-Mihaela"]
[Result "1/2-1/2"]
[ECO "E46"]
[WhiteElo "2041"]
[BlackElo "2163"]
[Annotator "ChessBase"]
[PlyCount "96"]
[EventDate "2022.07.12"]
[EventType "team-tourn"]
[EventCountry "GRE"]
[SourceTitle "playchess.com"]
[Source "ChessBase"]
[SourceQuality "1"]
[WhiteTeam "Germany"]
[BlackTeam "Romania"]
[WhiteTeamCountry "GER"]
[BlackTeamCountry "ROU"]
[TimeControl "40/5400+30:1800+30"]

1. d4 {[%emt 0:00:03]} Nf6 {[%emt 0:00:05]} 2. c4 {[%emt 0:00:03]} e6 {[%emt 0:00:04]} 3. Nc3 {[%emt 0:00:03]} Bb4 {[%emt 0:00:07]} 4. e3 {[%emt 0:00:16]} O-O {[%emt 0:00:21]} 5. Bd2 {[%emt 0:00:03]} b6 {[%emt 0:00:20]} 6. Nf3 {[%emt 0:00:21]} Bxc3 {[%emt 0:00:11]} 7. Bxc3 {[%emt 0:00:06]} Ne4 {[%emt 0:00:10]} 8. Qc2 {[%emt 0:02:31]} Bb7 {[%emt 0:00:33]} 9. Bd3 {[%emt 0:02:45]} Nxc3 {[%emt 0:00:51]} 10. bxc3 {[%emt 0:09:11]} Bxf3 {[%emt 0:16:53]} 11. gxf3 {[%emt 0:05:07]} Qh4 {[%emt 0:01:51]} 12. O-O-O {[%emt 0:04:45]} d6 {[%emt 0:04:05]} 13. Rdg1 {[%emt 0:04:31]} Nd7 {[%emt 0:01:26]} 14. Rg4 {[%emt 0:01:43]} Qh5 {[%emt 0:11:15]} 15. Rhg1 {[%emt 0:01:25]} g6 {[%emt 0:01:00]} 16. f4 {[%emt 0:10:31]} f5 {[%emt 0:17:48]} 17. R4g2 {[%emt 0:10:30]} Kh8 {[%emt 0:01:48]} 18. Be2 {[%emt 0:03:51]} Qh4 {[%emt 0:01:44]} 19. Bf3 {[%emt 0:02:59]} Rad8 {[%emt 0:01:27]} 20. Rg5 {[%emt 0:09:54]} e5 {[%emt 0:02:05]} 21. fxe5 {[%emt 0:03:20]} dxe5 {[%emt 0:00:10]} 22. Bb7 {[%emt 0:03:10]} f4 {[%emt 0:15:19]} 23. e4 {[%emt 0:12:48]} f3 {[%emt 0:03:13]} 24. Kb2 {[%emt 0:05:07]} Qxh2 {[%emt 0:01:42]} 25. R1g3 {[%emt 0:01:09]} Rf6 {[%emt 0:10:56]} 26. dxe5 {[%emt 0:01:44]} Nxe5 {[%emt 0:01:35]} 27. Rxe5 {[%emt 0:01:34]} Qxg3 {[%emt 0:00:12]} 28. fxg3 {[%emt 0:01:21]} f2 {[%emt 0:00:02]} 29. Rf5 {[%emt 0:00:18]} Rxf5 {[%emt 0:00:18]} 30. exf5 {[%emt 0:00:05]} f1=Q {[%emt 0:00:07]} 31. fxg6 {[%emt 0:00:22]} Rf8 {[%emt 0:01:31]} 32. g7+ {[%emt 0:02:13]} Kxg7 {[%emt 0:00:05]} 33. Qe4 {[%emt 0:00:22]} Rf2+ {[%emt 0:01:00]} 34. Kb3 {[%emt 0:01:00]} Qd1+ {[%emt 0:00:13]} 35. Kb4 Qd6+ {[%emt 0:04:23]} 36. Kb3 {[%emt 0:01:02]} a5 {[%emt 0:02:29]} 37. Qg4+ {[%emt 0:00:12]} Kh8 {[%emt 0:00:20]} 38. a4 {[%emt 0:00:38]} Qe5 {[%emt 0:01:16]} 39. Qc8+ {[%emt 0:01:11]} Kg7 {[%emt 0:00:01]} 40. Qg4+ {[%emt 0:00:00]} Kf8 {[%emt 0:00:00]} 41. Bd5 {[%emt 0:04:09]} Qf5 {[%emt 0:05:41]} 42. Qg8+ {[%emt 0:03:41]} Ke7 {[%emt 0:00:06]} 43. Qg7+ {[%emt 0:02:15]} Kd6 {[%emt 0:00:31]} 44. Qh6+ {[%emt 0:01:10]} Qg6 {[%emt 0:00:08]} 45. Qc1 {[%emt 0:00:24]} Qxg3 {[%emt 0:03:43]} 46. Qd1 {[%emt 0:03:31]} Ke7 {[%emt 0:01:23]} 47. Qh5 {[%emt 0:05:58]} Qh2 {[%emt 0:14:29]} 48. Qg5+ {[%emt 0:00:37]} Kd6 1/2-1/2

[Event "EYTCC Girls U18 2022"]
[Site "Thessaloniki"]
[Date "2022.07.14"]
[Round "3.3"]
[White "Ruzic, Pia Marie"]
[Black "Levitan, Ronit"]
[Result "1/2-1/2"]
[ECO "E04"]
[WhiteElo "2025"]
[BlackElo "2084"]
[Annotator "ChessBase"]
[PlyCount "119"]
[EventDate "2022.07.12"]
[EventType "team-tourn"]
[EventCountry "GRE"]
[SourceTitle "playchess.com"]
[Source "ChessBase"]
[SourceQuality "1"]
[WhiteTeam "Slovenia"]
[BlackTeam "Israel"]
[WhiteTeamCountry "SLO"]
[BlackTeamCountry "ISR"]
[TimeControl "40/5400+30:1800+30"]

1. d4 {[%emt 0:00:03]} Nf6 {[%emt 0:00:56]} 2. c4 {[%emt 0:00:15]} e6 {[%emt 0:00:06]} 3. Nf3 {[%emt 0:00:11]} d5 {[%emt 0:00:09]} 4. g3 {[%emt 0:00:08]} dxc4 {[%emt 0:00:20]} 5. Bg2 {[%emt 0:00:07]} a6 {[%emt 0:00:28]} 6. O-O {[%emt 0:00:33]} Nc6 {[%emt 0:00:45]} 7. Nc3 {[%emt 0:01:46]} Rb8 {[%emt 0:01:54]} 8. e4 {[%emt 0:01:33]} Be7 {[%emt 0:00:37]} 9. Qe2 {[%emt 0:01:32]} b5 {[%emt 0:00:20]} 10. Rd1 {[%emt 0:01:09]} O-O {[%emt 0:00:18]} 11. d5 {[%emt 0:01:36]} exd5 {[%emt 0:00:41]} 12. e5 {[%emt 0:00:47]} d4 {[%emt 0:01:04]} 13. exf6 {[%emt 0:01:17]} Bxf6 {[%emt 0:00:06]} 14. Qe4 {[%emt 0:01:22]} Bb7 {[%emt 0:04:33]} 15. Nd5 {[%emt 0:03:50]} Nb4 {[%emt 0:03:18]} 16. Nxf6+ {[%emt 0:00:29]} Qxf6 {[%emt 0:00:10]} 17. Qf4 {[%emt 0:01:32]} c5 {[%emt 0:03:12]} 18. Qxf6 {[%emt 0:03:07]} gxf6 {[%emt 0:00:06]} 19. Bf4 {[%emt 0:00:11]} Rbd8 {[%emt 0:05:09]} 20. Bc7 {[%emt 0:04:38]} Rc8 {[%emt 0:04:38]} 21. Ba5 {[%emt 0:06:02]} Nd3 {[%emt 0:01:57]} 22. Rab1 {[%emt 0:01:28]} Rfe8 {[%emt 0:02:31]} 23. Ne1 {[%emt 0:05:54]} Bxg2 {[%emt 0:00:21]} 24. Kxg2 {[%emt 0:03:09]} Ne5 {[%emt 0:00:47]} 25. Nf3 {[%emt 0:06:56]} b4 {[%emt 0:10:13]} 26. Nxe5 {[%emt 0:14:13]} fxe5 {[%emt 0:00:43]} 27. Rdc1 {[%emt 0:02:23]} c3 {[%emt 0:01:14]} 28. bxc3 {[%emt 0:02:56]} bxc3 {[%emt 0:00:16]} 29. Rb6 {[%emt 0:02:57]} Rb8 {[%emt 0:01:30]} 30. Rxb8 {[%emt 0:13:19]} Rxb8 {[%emt 0:00:08]} 31. Bc7 {[%emt 0:00:03]} Rb2 {[%emt 0:00:41]} 32. Bxe5 {[%emt 0:00:13]} Rxa2 {[%emt 0:02:07]} 33. Bd6 {[%emt 0:01:01]} c4 {[%emt 0:07:50]} 34. Be5 {[%emt 0:06:13]} Rd2 {[%emt 0:00:12]} 35. Kf3 {[%emt 0:01:31]} c2 {[%emt 0:01:37]} 36. Bf4 {[%emt 0:01:31]} c3 {[%emt 0:00:43]} 37. Ke4 {[%emt 0:06:46]} a5 {[%emt 0:03:01]} 38. Kd5 {[%emt 0:00:46]} a4 {[%emt 0:00:42]} 39. Kc4 {[%emt 0:00:49]} a3 {[%emt 0:01:10]} 40. Kb3 {[%emt 0:00:00]} Rxf2 {[%emt 0:00:00]} 41. Ra1 {[%emt 0:19:15]} a2 {[%emt 0:10:56]} 42. Bc1 {[%emt 0:04:50]} Rxh2 {[%emt 0:03:14]} 43. Rxa2 {[%emt 0:00:15]} d3 {[%emt 0:03:11]} 44. Kxc3 {[%emt 0:00:34]} Rh1 {[%emt 0:00:13]} 45. Kb2 {[%emt 0:03:40]} Rd1 {[%emt 0:00:23]} 46. Ra8+ {[%emt 0:00:36]} Kg7 {[%emt 0:00:27]} 47. Rd8 {[%emt 0:00:06]} Kg6 {[%emt 0:00:25]} 48. g4 {[%emt 0:02:19]} f6 {[%emt 0:01:03]} 49. Rd5 {[%emt 0:00:41]} Kf7 {[%emt 0:00:33]} 50. Rd7+ {[%emt 0:02:12]} Ke6 {[%emt 0:03:16]} 51. Rd8 {[%emt 0:00:50]} Ke5 {[%emt 0:01:10]} 52. g5 {[%emt 0:00:41]} fxg5 {[%emt 0:00:52]} 53. Bxg5 {[%emt 0:00:12]} Rb1+ {[%emt 0:00:58]} 54. Kc3 {[%emt 0:00:06]} Kf5 {[%emt 0:04:48]} 55. Rxd3 {[%emt 0:01:32]} Kxg5 {[%emt 0:01:15]} 56. Kxc2 {[%emt 0:00:19]} Rf1 {[%emt 0:03:27]} 57. Kd2 {[%emt 0:00:14]} Rf7 {[%emt 0:00:13]} 58. Ke2 {[%emt 0:00:25]} Kg4 {[%emt 0:00:08]} 59. Rd1 {[%emt 0:00:39]} h5 {[%emt 0:00:23]} 60. Rf1 {[%emt 0:00:06]} 1/2-1/2

[Event "EYTCC Girls U18 2022"]
[Site "Thessaloniki"]
[Date "2022.07.14"]
[Round "3.4"]
[White "Kochavi, Dana"]
[Black "Mihelic, Vesna"]
[Result "1/2-1/2"]
[ECO "C96"]
[WhiteElo "1885"]
[BlackElo "2029"]
[Annotator "ChessBase"]
[PlyCount "91"]
[EventDate "2022.07.12"]
[EventType "team-tourn"]
[EventCountry "GRE"]
[SourceTitle "playchess.com"]
[Source "ChessBase"]
[SourceQuality "1"]
[WhiteTeam "Israel"]
[BlackTeam "Slovenia"]
[WhiteTeamCountry "ISR"]
[BlackTeamCountry "SLO"]
[TimeControl "40/5400+30:1800+30"]

1. e4 {[%emt 0:00:03]} e5 {[%emt 0:00:07]} 2. Nf3 {[%emt 0:00:10]} Nc6 {[%emt 0:00:07]} 3. Bb5 {[%emt 0:00:04]} a6 {[%emt 0:00:09]} 4. Ba4 {[%emt 0:00:07]} Nf6 {[%emt 0:00:22]} 5. O-O {[%emt 0:00:16]} d6 {[%emt 0:00:50]} 6. Re1 {[%emt 0:01:09]} b5 {[%emt 0:00:37]} 7. Bb3 {[%emt 0:00:06]} Be7 {[%emt 0:00:39]} 8. c3 {[%emt 0:02:06]} O-O {[%emt 0:00:54]} 9. h3 {[%emt 0:05:03]} Na5 {[%emt 0:00:28]} 10. Bc2 {[%emt 0:00:09]} c5 {[%emt 0:00:10]} 11. d4 {[%emt 0:01:53]} Nd7 {[%emt 0:00:41]} 12. dxe5 {[%emt 0:09:07]} dxe5 {[%emt 0:01:19]} 13. Nbd2 {[%emt 0:01:19]} Bb7 {[%emt 0:05:18]} 14. Nf1 {[%emt 0:00:37]} Nc4 {[%emt 0:07:36]} 15. Ng3 {[%emt 0:04:26]} g6 {[%emt 0:05:02]} 16. b3 {[%emt 0:02:31]} Ncb6 {[%emt 0:09:00]} 17. Bh6 {[%emt 0:01:54]} Re8 {[%emt 0:00:14]} 18. Qd2 {[%emt 0:05:08]} Qc7 {[%emt 0:03:49]} 19. Qe3 {[%emt 0:05:08]} a5 {[%emt 0:05:03]} 20. a3 {[%emt 0:12:17]} a4 {[%emt 0:02:43]} 21. b4 {[%emt 0:00:06]} cxb4 {[%emt 0:03:16]} 22. axb4 {[%emt 0:00:56]} Rac8 {[%emt 0:03:52]} 23. Bd3 {[%emt 0:06:43]} Nc4 {[%emt 0:07:23]} 24. Bxc4 {[%emt 0:01:02]} Qxc4 {[%emt 0:00:21]} 25. Rec1 {[%emt 0:00:18]} f6 {[%emt 0:12:53]} 26. Nd2 {[%emt 0:03:21]} Qc6 {[%emt 0:00:41]} 27. Qf3 {[%emt 0:11:14]} Nb6 {[%emt 0:04:56]} 28. Qg4 {[%emt 0:04:21]} Bf8 {[%emt 0:05:38]} 29. Bxf8 {[%emt 0:02:55]} Kxf8 {[%emt 0:00:50]} 30. Ngf1 {[%emt 0:02:08]} Red8 {[%emt 0:02:40]} 31. Qg3 {[%emt 0:04:14]} Nc4 {[%emt 0:00:33]} 32. Rc2 {[%emt 0:00:22]} Rd6 {[%emt 0:02:07]} 33. Rac1 {[%emt 0:02:27]} Rcd8 {[%emt 0:01:19]} 34. Nxc4 {[%emt 0:00:09]} Qxc4 {[%emt 0:01:54]} 35. f3 {[%emt 0:00:17]} Rd1 {[%emt 0:09:08]} 36. Qf2 {[%emt 0:00:20]} a3 {[%emt 0:01:11]} 37. Kh2 {[%emt 0:03:09]} Rxc1 {[%emt 0:01:05]} 38. Rxc1 {[%emt 0:00:06]} a2 {[%emt 0:00:38]} 39. Qb6 {[%emt 0:00:50]} Ra8 {[%emt 0:02:24]} 40. Qxf6+ {[%emt 0:00:00]} Qf7 {[%emt 0:00:00]} 41. Qh8+ {[%emt 0:00:31]} Qg8 {[%emt 0:01:37]} 42. Qf6+ {[%emt 0:08:27]} Qf7 {[%emt 0:00:08]} 43. Qh8+ {[%emt 0:00:15]} Qg8 {[%emt 0:00:06]} 44. Qf6+ {[%emt 0:23:35]} Qf7 {[%emt 0:00:02]} 45. Qh8+ {[%emt 0:00:09]} Qg8 {[%emt 0:00:01]} 46. Qf6+ {[%emt 0:00:10]} 1/2-1/2

[Event "EYTCC Girls U18 2022"]
[Site "Thessaloniki"]
[Date "2022.07.14"]
[Round "3.5"]
[White "Buchholz, Maja"]
[Black "Demeter, Dorina"]
[Result "0-1"]
[ECO "A37"]
[WhiteElo "1879"]
[BlackElo "2176"]
[Annotator "ChessBase"]
[PlyCount "132"]
[EventDate "2022.07.12"]
[EventType "team-tourn"]
[EventCountry "GRE"]
[SourceTitle "playchess.com"]
[Source "ChessBase"]
[SourceQuality "1"]
[WhiteTeam "Germany"]
[BlackTeam "Hungary"]
[WhiteTeamCountry "GER"]
[BlackTeamCountry "HUN"]
[TimeControl "40/5400+30:1800+30"]

1. c4 {[%emt 0:00:02]} c5 {[%emt 0:00:37]} 2. g3 {[%emt 0:00:05]} Nc6 {[%emt 0:00:19]} 3. Bg2 {[%emt 0:00:05]} g6 {[%emt 0:00:15]} 4. Nc3 {[%emt 0:00:08]} Bg7 {[%emt 0:00:40]} 5. Nf3 {[%emt 0:00:08]} e6 {[%emt 0:00:25]} 6. d4 {[%emt 0:00:17]} cxd4 {[%emt 0:01:15]} 7. Nb5 {[%emt 0:00:26]} d5 {[%emt 0:00:56]} 8. cxd5 {[%emt 0:00:37]} Qa5+ {[%emt 0:00:46]} 9. Nd2 {[%emt 0:00:44]} exd5 {[%emt 0:01:40]} 10. Nd6+ {[%emt 0:00:28]} Kf8 {[%emt 0:00:39]} 11. Qb3 {[%emt 0:01:43]} Nge7 {[%emt 0:03:40]} 12. O-O {[%emt 0:01:04]} Be6 {[%emt 0:07:23]} 13. Nxb7 {[%emt 0:03:03]} Qb6 {[%emt 0:01:42]} 14. Qxb6 {[%emt 0:02:56]} axb6 {[%emt 0:00:04]} 15. Nd6 {[%emt 0:00:09]} Nb4 {[%emt 0:07:20]} 16. a3 {[%emt 0:17:08]} d3 {[%emt 0:16:37]} 17. e3 {[%emt 0:07:46]} Nc2 {[%emt 0:04:22]} 18. Rb1 {[%emt 0:02:50]} Rd8 {[%emt 0:00:30]} 19. Nb5 {[%emt 0:01:20]} d4 {[%emt 0:01:16]} 20. Nxd4 {[%emt 0:11:04]} Ba2 {[%emt 0:01:17]} 21. Nxc2 {[%emt 0:02:45]} Bxb1 {[%emt 0:00:45]} 22. Nb4 {[%emt 0:04:39]} Bc2 {[%emt 0:01:06]} 23. Nxc2 {[%emt 0:02:40]} dxc2 {[%emt 0:00:08]} 24. Be4 {[%emt 0:00:07]} Rc8 {[%emt 0:01:29]} 25. Nb3 {[%emt 0:00:42]} f5 {[%emt 0:03:53]} 26. Bd3 {[%emt 0:00:50]} Kf7 {[%emt 0:00:37]} 27. Na1 {[%emt 0:00:44]} Rc7 {[%emt 0:01:58]} 28. Re1 {[%emt 0:04:27]} Rhc8 {[%emt 0:00:33]} 29. Kg2 {[%emt 0:01:22]} Bxb2 {[%emt 0:02:58]} 30. Bxb2 {[%emt 0:01:08]} c1=Q {[%emt 0:00:18]} 31. Rxc1 {[%emt 0:00:49]} Rxc1 {[%emt 0:00:08]} 32. Bxc1 {[%emt 0:00:10]} Rxc1 {[%emt 0:00:06]} 33. Nc2 {[%emt 0:00:12]} Kf6 {[%emt 0:01:15]} 34. h4 {[%emt 0:00:53]} Nc6 {[%emt 0:03:37]} 35. Nb4 {[%emt 0:00:43]} Ne5 {[%emt 0:04:54]} 36. Bb5 {[%emt 0:00:57]} Rc5 {[%emt 0:02:17]} 37. a4 {[%emt 0:00:54]} Ke6 {[%emt 0:00:58]} 38. Nd3 {[%emt 0:03:25]} Nxd3 {[%emt 0:01:48]} 39. Bxd3 {[%emt 0:00:14]} Kd6 {[%emt 0:00:17]} 40. Kf3 {[%emt 0:00:00]} Ra5 {[%emt 0:00:00]} 41. Bc2 {[%emt 0:03:22]} Kc5 {[%emt 0:04:15]} 42. Kf4 {[%emt 0:00:53]} Kb4 {[%emt 0:00:20]} 43. f3 {[%emt 0:01:34]} Rc5 {[%emt 0:00:25]} 44. Bd1 {[%emt 0:01:09]} Rc1 45. Be2 {[%emt 0:00:08]} Kxa4 {[%emt 0:00:19]} 46. g4 {[%emt 0:00:20]} fxg4 {[%emt 0:01:55]} 47. fxg4 {[%emt 0:00:22]} Re1 {[%emt 0:01:39]} 48. Bd3 {[%emt 0:00:16]} Kb4 {[%emt 0:00:17]} 49. h5 {[%emt 0:00:25]} gxh5 {[%emt 0:01:04]} 50. gxh5 {[%emt 0:00:09]} h6 {[%emt 0:00:07]} 51. Bg6 {[%emt 0:00:36]} Kc3 {[%emt 0:00:21]} 52. Be8 {[%emt 0:01:23]} Kc4 {[%emt 0:02:08]} 53. Bf7+ {[%emt 0:01:18]} Kc5 {[%emt 0:00:08]} 54. Bg6 {[%emt 0:00:21]} b5 {[%emt 0:00:15]} 55. e4 {[%emt 0:03:29]} Kd4 {[%emt 0:01:18]} 56. Kf5 {[%emt 0:00:31]} b4 {[%emt 0:01:37]} 57. Kf6 {[%emt 0:00:54]} b3 {[%emt 0:01:16]} 58. Kg7 {[%emt 0:00:36]} Rxe4 {[%emt 0:01:30]} 59. Bf7 {[%emt 0:03:55]} Re7 {[%emt 0:00:12]} 60. Kg6 {[%emt 0:00:20]} Rxf7 {[%emt 0:00:09]} 61. Kxf7 {[%emt 0:00:13]} b2 {[%emt 0:00:09]} 62. Kg6 {[%emt 0:00:04]} Ke5 {[%emt 0:00:06]} 63. Kxh6 {[%emt 0:00:23]} Kf6 {[%emt 0:00:14]} 64. Kh7 {[%emt 0:00:12]} b1=Q+ {[%emt 0:00:08]} 65. Kh6 {[%emt 0:00:07]} Qg1 {[%emt 0:00:18]} 66. Kh7 {[%emt 0:00:08]} Qg7# {[%emt 0:00:12]} 0-1